[Event "Titled Tuesday Blitz March 22 Early 2022"]
[White "Garriga Cazorla, Pere"]
[Black "Jumabayev, Rinat"]
[WhiteFideId "32011601"]
[BlackFideId "13702661"]
[WhiteElo "2458"]
[BlackElo "2561"]
[Result "0-1"]
[Round "03"]
[TimeControl "180+1"]
[Date "2022.03.22"]
[WhiteClock "0:00:02"]
[BlackClock "0:00:09"]

1. d4 {[%clk 0:03:00]}  Nf6 {[%clk 0:02:59]} 2. c4 {[%clk 0:03:00]}  e6 {[%clk 0:03:00]} 3. Nc3 {[%clk 0:03:01]}  Bb4 {[%clk 0:03:00]} 4. Qc2 {[%clk 0:03:01]}  c5 {[%clk 0:02:57]} 5. dxc5 {[%clk 0:03:02]}  Bxc5 {[%clk 0:02:57]} 6. Nf3 {[%clk 0:03:02]}  b6 {[%clk 0:02:56]} 7. Bf4 {[%clk 0:03:01]}  Bb7 {[%clk 0:02:55]} 8. e3 {[%clk 0:03:01]}  O-O {[%clk 0:02:52]} 9. Be2 {[%clk 0:03:00]}  Nc6 {[%clk 0:02:50]} 10. O-O {[%clk 0:02:56]}  Rc8 {[%clk 0:02:50]} 11. Rad1 {[%clk 0:02:55]}  h6 {[%clk 0:02:39]} 12. a3 {[%clk 0:02:52]}  Be7 {[%clk 0:02:36]} 13. Bd6 {[%clk 0:02:25]}  Bxd6 {[%clk 0:02:27]} 14. Rxd6 {[%clk 0:02:26]}  Qe7 {[%clk 0:02:23]} 15. Rfd1 {[%clk 0:02:25]}  Na5 {[%clk 0:02:21]} 16. Ne5 {[%clk 0:02:24]}  Rfd8 {[%clk 0:02:19]} 17. b4 {[%clk 0:02:15]}  Nc6 {[%clk 0:02:18]} 18. Nxc6 {[%clk 0:02:11]}  Bxc6 {[%clk 0:02:12]} 19. Qd2 {[%clk 0:01:57]}  Ne8 {[%clk 0:02:09]} 20. Rd4 {[%clk 0:01:53]}  d6 {[%clk 0:01:57]} 21. f4 {[%clk 0:01:50]}  a5 {[%clk 0:01:46]} 22. e4 {[%clk 0:01:40]}  axb4 {[%clk 0:01:44]} 23. axb4 {[%clk 0:01:41]}  e5 {[%clk 0:01:45]} 24. fxe5 {[%clk 0:01:39]}  Qxe5 {[%clk 0:01:46]} 25. Rf1 {[%clk 0:01:27]}  Nf6 {[%clk 0:01:39]} 26. Rf5 {[%clk 0:01:21]}  Qe7 {[%clk 0:01:29]} 27. Qf4 {[%clk 0:01:19]}  Nh7 {[%clk 0:01:20]} 28. Nd5 {[%clk 0:01:03]}  Qa7 {[%clk 0:01:10]} 29. h4 {[%clk 0:00:55]}  Nf8 {[%clk 0:01:07]} 30. Qf2 {[%clk 0:00:44]}  Bxd5 {[%clk 0:00:47]} 31. exd5 {[%clk 0:00:38]}  Re8 {[%clk 0:00:44]} 32. Rg4 {[%clk 0:00:32]}  Rc7 {[%clk 0:00:43]} 33. Bd3 {[%clk 0:00:22]}  Qa1+ {[%clk 0:00:37]} 34. Kh2 {[%clk 0:00:22]}  Re1 {[%clk 0:00:37]} 35. Qf4 {[%clk 0:00:08]}  Rh1+ {[%clk 0:00:27]} 36. Kg3 {[%clk 0:00:09]}  Qe1+ {[%clk 0:00:27]} 37. Qf2 {[%clk 0:00:09]}  Qc3 {[%clk 0:00:26]} 38. Qe3 {[%clk 0:00:08]}  Re1 {[%clk 0:00:19]} 39. Qf3 {[%clk 0:00:07]}  Rce7 {[%clk 0:00:11]} 40. Re4 {[%clk 0:00:03]}  R1xe4 {[%clk 0:00:08]} 41. Bxe4 {[%clk 0:00:04]}  Qe1+ {[%clk 0:00:08]} 42. Kf4 {[%clk 0:00:03]}  Qxb4 {[%clk 0:00:07]} 43. Kg4 {[%clk 0:00:02]}  Qe1 {[%clk 0:00:06]} 44. Bd3 {[%clk 0:00:02]}  Ng6 {[%clk 0:00:06]} 45. g3 {[%clk 0:00:03]}  Ne5+ {[%clk 0:00:07]} 46. Rxe5 {[%clk 0:00:03]}  Qxe5 {[%clk 0:00:08]} 47. Kh3 {[%clk 0:00:03]}  h5 {[%clk 0:00:08]} 48. Qd1 {[%clk 0:00:02]}  g6 {[%clk 0:00:08]} 49. Qf3 {[%clk 0:00:02]}  Kg7 {[%clk 0:00:08]} 50. Qd1 {[%clk 0:00:02]}  Ra7 {[%clk 0:00:09]} 51. Qf3 {[%clk 0:00:03]}  Ra3 {[%clk 0:00:09]} 52. Qf1 {[%clk 0:00:02]}  Qe3 {[%clk 0:00:09]} 0-1


[Site "https://www.chess.com"]

[Event "Titled Tuesday Blitz March 22 Early 2022"]
[White "Garv Gaur"]
[Black "Golsta, Madara"]
[WhiteFideId "45030839"]
[BlackFideId "11607386"]
[WhiteElo "1950"]
[BlackElo "1997"]
[Result "1-0"]
[Round "03"]
[TimeControl "180+1"]
[Date "2022.03.22"]
[WhiteClock "0:01:03"]
[BlackClock "0:00:08"]

1. d4 {[%clk 0:03:00]}  Nf6 {[%clk 0:02:59]} 2. Nf3 {[%clk 0:03:01]}  g6 {[%clk 0:02:59]} 3. c4 {[%clk 0:03:02]}  Bg7 {[%clk 0:02:55]} 4. g3 {[%clk 0:03:03]}  O-O {[%clk 0:02:53]} 5. Bg2 {[%clk 0:03:03]}  c5 {[%clk 0:02:53]} 6. d5 {[%clk 0:03:03]}  e6 {[%clk 0:02:51]} 7. O-O {[%clk 0:03:03]}  exd5 {[%clk 0:02:38]} 8. cxd5 {[%clk 0:03:03]}  b5 {[%clk 0:02:34]} 9. Re1 {[%clk 0:02:53]}  Re8 {[%clk 0:02:33]} 10. a4 {[%clk 0:02:41]}  b4 {[%clk 0:02:31]} 11. Nbd2 {[%clk 0:02:42]}  Ba6 {[%clk 0:02:27]} 12. e4 {[%clk 0:02:40]}  d6 {[%clk 0:02:25]} 13. Qc2 {[%clk 0:02:36]}  Nbd7 {[%clk 0:02:20]} 14. a5 {[%clk 0:02:29]}  Rc8 {[%clk 0:02:04]} 15. Nc4 {[%clk 0:02:27]}  Bxc4 {[%clk 0:01:28]} 16. Qxc4 {[%clk 0:02:28]}  Ng4 {[%clk 0:01:22]} 17. Bf4 {[%clk 0:02:24]}  Nge5 {[%clk 0:01:16]} 18. Qa6 {[%clk 0:02:12]}  Qc7 {[%clk 0:01:15]} 19. Rac1 {[%clk 0:02:09]}  c4 {[%clk 0:01:09]} 20. Nd4 {[%clk 0:02:02]}  Nc5 {[%clk 0:01:05]} 21. Qb5 {[%clk 0:01:56]}  Ncd3 {[%clk 0:01:01]} 22. Bxe5 {[%clk 0:01:46]}  Bxe5 {[%clk 0:01:01]} 23. Nc6 {[%clk 0:01:45]}  Nxe1 {[%clk 0:00:41]} 24. Rxe1 {[%clk 0:01:44]}  c3 {[%clk 0:00:38]} 25. bxc3 {[%clk 0:01:43]}  Bxc3 {[%clk 0:00:37]} 26. Rc1 {[%clk 0:01:43]}  Rb8 {[%clk 0:00:29]} 27. Qc4 {[%clk 0:01:32]}  Rec8 {[%clk 0:00:13]} 28. Bh3 {[%clk 0:01:30]}  Re8 {[%clk 0:00:12]} 29. Bg2 {[%clk 0:01:27]}  Rec8 {[%clk 0:00:11]} 30. h4 {[%clk 0:01:10]}  h5 {[%clk 0:00:10]} 31. Kh2 {[%clk 0:01:04]}  Qe7 {[%clk 0:00:08]} 32. Nxe7+ {[%clk 0:01:03]} 1-0


[Site "https://www.chess.com"]

[Event "Titled Tuesday Blitz March 22 Early 2022"]
[White "Gatterer, Florian"]
[Black "Fernandez, Daniel Howard"]
[WhiteFideId "811688"]
[BlackFideId "5801605"]
[WhiteElo "2218"]
[BlackElo "2466"]
[Result "0-1"]
[Round "03"]
[TimeControl "180+1"]
[Date "2022.03.22"]
[WhiteClock "0:00:04"]
[BlackClock "0:00:18"]

1. Nf3 {[%clk 0:03:00]}  d5 {[%clk 0:02:57]} 2. d4 {[%clk 0:03:00]}  Nf6 {[%clk 0:02:56]} 3. g3 {[%clk 0:03:00]}  c6 {[%clk 0:02:51]} 4. Bg2 {[%clk 0:02:59]}  Bg4 {[%clk 0:02:52]} 5. Ne5 {[%clk 0:02:56]}  Bf5 {[%clk 0:02:50]} 6. c4 {[%clk 0:02:55]}  e6 {[%clk 0:02:49]} 7. Nc3 {[%clk 0:02:53]}  Nbd7 {[%clk 0:02:49]} 8. Qb3 {[%clk 0:02:41]}  Qc8 {[%clk 0:02:43]} 9. cxd5 {[%clk 0:02:38]}  exd5 {[%clk 0:02:42]} 10. O-O {[%clk 0:02:30]}  Be7 {[%clk 0:02:39]} 11. Bf4 {[%clk 0:02:22]}  O-O {[%clk 0:02:38]} 12. Rac1 {[%clk 0:02:22]}  Be6 {[%clk 0:02:24]} 13. h3 {[%clk 0:02:13]}  Nxe5 {[%clk 0:02:23]} 14. Bxe5 {[%clk 0:02:10]}  Bxh3 {[%clk 0:02:22]} 15. Bxf6 {[%clk 0:02:00]}  Bxf6 {[%clk 0:02:19]} 16. e3 {[%clk 0:01:59]}  Bxg2 {[%clk 0:02:11]} 17. Kxg2 {[%clk 0:01:58]}  Qd7 {[%clk 0:02:12]} 18. Rh1 {[%clk 0:01:57]}  g6 {[%clk 0:02:09]} 19. Rh2 {[%clk 0:01:48]}  h5 {[%clk 0:02:01]} 20. Rch1 {[%clk 0:01:46]}  Kg7 {[%clk 0:02:01]} 21. Ne2 {[%clk 0:01:40]}  Rh8 {[%clk 0:02:00]} 22. Nf4 {[%clk 0:01:38]}  Rab8 {[%clk 0:01:56]} 23. Qd1 {[%clk 0:01:37]}  Qf5 {[%clk 0:01:52]} 24. f3 {[%clk 0:01:30]}  Rbe8 {[%clk 0:01:51]} 25. Kf2 {[%clk 0:00:59]}  Bg5 {[%clk 0:01:33]} 26. g4 {[%clk 0:00:56]}  hxg4 {[%clk 0:01:26]} 27. Rxh8 {[%clk 0:00:47]}  Rxh8 {[%clk 0:01:27]} 28. Rxh8 {[%clk 0:00:45]}  Kxh8 {[%clk 0:01:28]} 29. fxg4 {[%clk 0:00:38]}  Bh4+ {[%clk 0:01:28]} 30. Kg1 {[%clk 0:00:25]}  Qe4 {[%clk 0:01:27]} 31. Ng2 {[%clk 0:00:19]}  Bg5 {[%clk 0:01:21]} 32. Kf2 {[%clk 0:00:15]}  Kg7 {[%clk 0:01:20]} 33. Qb3 {[%clk 0:00:14]}  b6 {[%clk 0:01:17]} 34. Qa3 {[%clk 0:00:14]}  Qc2+ {[%clk 0:01:12]} 35. Kf3 {[%clk 0:00:13]}  a5 {[%clk 0:00:51]} 36. Qd6 {[%clk 0:00:12]}  Qxb2 {[%clk 0:00:44]} 37. Qxc6 {[%clk 0:00:12]}  Qxa2 {[%clk 0:00:43]} 38. Qxb6 {[%clk 0:00:12]}  a4 {[%clk 0:00:44]} 39. Qd6 {[%clk 0:00:10]}  a3 {[%clk 0:00:41]} 40. Nf4 {[%clk 0:00:10]}  Bxf4 {[%clk 0:00:32]} 41. Qxf4 {[%clk 0:00:09]}  Qc4 {[%clk 0:00:25]} 42. Qe5+ {[%clk 0:00:08]}  Kh7 {[%clk 0:00:24]} 43. Qh2+ {[%clk 0:00:07]}  Kg8 {[%clk 0:00:24]} 44. Qb8+ {[%clk 0:00:07]}  Kg7 {[%clk 0:00:24]} 45. Qe5+ {[%clk 0:00:07]}  Kf8 {[%clk 0:00:23]} 46. Qb8+ {[%clk 0:00:06]}  Ke7 {[%clk 0:00:23]} 47. Qe5+ {[%clk 0:00:06]}  Kd7 {[%clk 0:00:22]} 48. Qg7 {[%clk 0:00:03]}  Qf1+ {[%clk 0:00:21]} 49. Kg3 {[%clk 0:00:03]}  a2 {[%clk 0:00:22]} 50. Qe5 {[%clk 0:00:02]}  Qg1+ {[%clk 0:00:19]} 51. Kf3 {[%clk 0:00:03]}  Qh1+ {[%clk 0:00:19]} 52. Kg3 {[%clk 0:00:03]}  a1=Q {[%clk 0:00:19]} 53. Qf6 {[%clk 0:00:03]}  Qag1+ {[%clk 0:00:18]} 54. Kf4 {[%clk 0:00:03]}  Qf2+ {[%clk 0:00:19]} 55. Kg5 {[%clk 0:00:04]}  Qhh4# {[%clk 0:00:18]} 0-1


[Site "https://www.chess.com"]

[Event "Titled Tuesday Blitz March 22 Early 2022"]
[White "Golubev, Mikhail"]
[Black "Dushyant Sharma"]
[WhiteFideId "14100983"]
[BlackFideId "25065130"]
[WhiteElo "2374"]
[BlackElo "2105"]
[Result "1-0"]
[Round "03"]
[TimeControl "180+1"]
[Date "2022.03.22"]
[WhiteClock "0:00:12"]
[BlackClock "0:01:12"]

1. e4 {[%clk 0:03:00]}  d5 {[%clk 0:02:59]} 2. exd5 {[%clk 0:02:59]}  Nf6 {[%clk 0:02:56]} 3. Nf3 {[%clk 0:02:57]}  Bg4 {[%clk 0:02:57]} 4. Bb5+ {[%clk 0:02:50]}  c6 {[%clk 0:02:57]} 5. dxc6 {[%clk 0:02:49]}  Nxc6 {[%clk 0:02:58]} 6. h3 {[%clk 0:02:37]}  Bh5 {[%clk 0:02:55]} 7. d4 {[%clk 0:02:28]}  e6 {[%clk 0:02:54]} 8. O-O {[%clk 0:02:23]}  Bd6 {[%clk 0:02:54]} 9. Nc3 {[%clk 0:01:46]}  O-O {[%clk 0:02:53]} 10. Bxc6 {[%clk 0:01:42]}  bxc6 {[%clk 0:02:54]} 11. Bg5 {[%clk 0:01:40]}  Qb6 {[%clk 0:02:47]} 12. Qd2 {[%clk 0:01:15]}  Bxf3 {[%clk 0:02:43]} 13. gxf3 {[%clk 0:01:11]}  Nd5 {[%clk 0:02:41]} 14. Ne4 {[%clk 0:00:59]}  Be7 {[%clk 0:02:16]} 15. c4 {[%clk 0:00:57]}  Bxg5 {[%clk 0:02:16]} 16. Qxg5 {[%clk 0:00:55]}  f6 {[%clk 0:02:16]} 17. Qd2 {[%clk 0:00:47]}  Ne7 {[%clk 0:02:13]} 18. Nc5 {[%clk 0:00:46]}  Nf5 {[%clk 0:02:07]} 19. Nxe6 {[%clk 0:00:45]}  Rfe8 {[%clk 0:02:07]} 20. Rae1 {[%clk 0:00:38]}  Kf7 {[%clk 0:01:55]} 21. Nc5 {[%clk 0:00:26]}  Red8 {[%clk 0:01:43]} 22. Qe2 {[%clk 0:00:19]}  Nxd4 {[%clk 0:01:39]} 23. Qe7+ {[%clk 0:00:18]}  Kg8 {[%clk 0:01:39]} 24. Nd7 {[%clk 0:00:17]}  Nxf3+ {[%clk 0:01:33]} 25. Kh1 {[%clk 0:00:17]}  Nxe1 {[%clk 0:01:27]} 26. Nxb6 {[%clk 0:00:15]}  Re8 {[%clk 0:01:19]} 27. Qd6 {[%clk 0:00:12]}  axb6 {[%clk 0:01:19]} 28. Qxc6 {[%clk 0:00:13]}  Nd3 {[%clk 0:01:11]} 29. Qd5+ {[%clk 0:00:12]}  Kh8 {[%clk 0:01:10]} 30. Qxd3 {[%clk 0:00:13]}  Rxa2 {[%clk 0:01:10]} 31. Qb3 {[%clk 0:00:13]}  Ra6 {[%clk 0:01:08]} 32. Qb5 {[%clk 0:00:13]}  Rea8 {[%clk 0:01:09]} 33. Re1 {[%clk 0:00:13]}  h6 {[%clk 0:01:10]} 34. Re8+ {[%clk 0:00:12]}  Rxe8 {[%clk 0:01:10]} 35. Qxe8+ {[%clk 0:00:12]}  Kh7 {[%clk 0:01:11]} 36. Kg2 {[%clk 0:00:13]}  Ra2 {[%clk 0:01:11]} 37. Qb5 {[%clk 0:00:12]}  Rxb2 {[%clk 0:01:12]} 38. Qxb2 {[%clk 0:00:12]} 1-0


[Site "https://www.chess.com"]

[Event "Titled Tuesday Blitz March 22 Early 2022"]
[White "Hakobyan, Aram"]
[Black "Kosteniuk, Alexandra"]
[WhiteFideId "13306677"]
[BlackFideId "4128125"]
[WhiteElo "2557"]
[BlackElo "2469"]
[Result "1-0"]
[Round "03"]
[TimeControl "180+1"]
[Date "2022.03.22"]
[WhiteClock "0:01:06"]
[BlackClock "0:01:24"]

1. d4 {[%clk 0:03:00]}  Nf6 {[%clk 0:02:59]} 2. Nf3 {[%clk 0:03:01]}  d5 {[%clk 0:02:58]} 3. c3 {[%clk 0:03:02]}  c5 {[%clk 0:02:55]} 4. dxc5 {[%clk 0:03:02]}  e6 {[%clk 0:02:50]} 5. Be3 {[%clk 0:03:02]}  Nbd7 {[%clk 0:02:45]} 6. b4 {[%clk 0:02:56]}  g6 {[%clk 0:02:42]} 7. g3 {[%clk 0:02:54]}  Bg7 {[%clk 0:02:42]} 8. Bg2 {[%clk 0:02:53]}  a5 {[%clk 0:02:43]} 9. Bd4 {[%clk 0:02:44]}  O-O {[%clk 0:02:40]} 10. O-O {[%clk 0:02:44]}  Re8 {[%clk 0:02:40]} 11. Ne5 {[%clk 0:02:37]}  Qc7 {[%clk 0:02:40]} 12. Nxd7 {[%clk 0:02:32]}  Bxd7 {[%clk 0:02:38]} 13. f4 {[%clk 0:02:31]}  Ng4 {[%clk 0:02:15]} 14. Bxg7 {[%clk 0:01:37]}  Kxg7 {[%clk 0:02:15]} 15. h3 {[%clk 0:01:38]}  Nf6 {[%clk 0:02:05]} 16. Nd2 {[%clk 0:01:32]}  a4 {[%clk 0:02:02]} 17. Nf3 {[%clk 0:01:30]}  Bb5 {[%clk 0:02:02]} 18. Qd4 {[%clk 0:01:24]}  Qe7 {[%clk 0:01:57]} 19. Rfe1 {[%clk 0:01:19]}  Kg8 {[%clk 0:01:56]} 20. Ne5 {[%clk 0:01:18]}  Nh5 {[%clk 0:01:48]} 21. Kh2 {[%clk 0:01:18]}  f6 {[%clk 0:01:47]} 22. Ng4 {[%clk 0:01:15]}  Rad8 {[%clk 0:01:42]} 23. a3 {[%clk 0:01:12]}  Bc4 {[%clk 0:01:38]} 24. Qf2 {[%clk 0:01:08]}  e5 {[%clk 0:01:34]} 25. fxe5 {[%clk 0:01:07]}  fxe5 {[%clk 0:01:34]} 26. Rad1 {[%clk 0:01:07]}  e4 {[%clk 0:01:29]} 27. Qd4 {[%clk 0:01:06]}  Rf8 {[%clk 0:01:24]} 28. Nh6# {[%clk 0:01:06]} 1-0


[Site "https://www.chess.com"]

[Event "Titled Tuesday Blitz March 22 Early 2022"]
[White "Hoeffer, David"]
[Black "Molina, Roberto Junio Brito"]
[WhiteFideId "24606766"]
[BlackFideId "2109450"]
[WhiteElo "2301"]
[BlackElo "2432"]
[Result "0-1"]
[Round "03"]
[TimeControl "180+1"]
[Date "2022.03.22"]
[WhiteClock "0:00:31"]
[BlackClock "0:01:05"]

1. e4 {[%clk 0:03:00]}  c6 {[%clk 0:03:00]} 2. d4 {[%clk 0:02:59]}  d5 {[%clk 0:03:01]} 3. exd5 {[%clk 0:02:59]}  cxd5 {[%clk 0:03:02]} 4. c4 {[%clk 0:03:00]}  Nf6 {[%clk 0:03:03]} 5. Nc3 {[%clk 0:03:00]}  e6 {[%clk 0:03:04]} 6. Nf3 {[%clk 0:02:54]}  Be7 {[%clk 0:03:04]} 7. Bg5 {[%clk 0:02:52]}  O-O {[%clk 0:03:00]} 8. Be2 {[%clk 0:02:47]}  dxc4 {[%clk 0:03:00]} 9. Bxc4 {[%clk 0:02:46]}  a6 {[%clk 0:03:00]} 10. O-O {[%clk 0:02:45]}  b5 {[%clk 0:03:00]} 11. Bb3 {[%clk 0:02:46]}  Bb7 {[%clk 0:03:00]} 12. Ne5 {[%clk 0:02:45]}  Nc6 {[%clk 0:02:44]} 13. Nxc6 {[%clk 0:02:37]}  Bxc6 {[%clk 0:02:45]} 14. Qd3 {[%clk 0:02:32]}  b4 {[%clk 0:02:34]} 15. Ne2 {[%clk 0:02:29]}  Nd5 {[%clk 0:02:26]} 16. Bxe7 {[%clk 0:02:28]}  Qxe7 {[%clk 0:02:26]} 17. Rfd1 {[%clk 0:02:22]}  Rfd8 {[%clk 0:02:20]} 18. Rac1 {[%clk 0:02:15]}  Bb5 {[%clk 0:02:19]} 19. Qd2 {[%clk 0:02:16]}  Bxe2 {[%clk 0:02:15]} 20. Qxe2 {[%clk 0:02:17]}  Nf6 {[%clk 0:02:12]} 21. d5 {[%clk 0:02:11]}  e5 {[%clk 0:02:09]} 22. Rc6 {[%clk 0:01:59]}  a5 {[%clk 0:02:08]} 23. d6 {[%clk 0:01:49]}  Qe8 {[%clk 0:02:05]} 24. Rc7 {[%clk 0:01:44]}  Kh8 {[%clk 0:02:01]} 25. Bxf7 {[%clk 0:01:37]}  Qf8 {[%clk 0:01:59]} 26. Qxe5 {[%clk 0:01:36]}  Ra6 {[%clk 0:01:55]} 27. h3 {[%clk 0:01:01]}  h6 {[%clk 0:01:53]} 28. Bg6 {[%clk 0:00:47]}  Ng8 {[%clk 0:01:33]} 29. Rd5 {[%clk 0:00:32]}  Raxd6 {[%clk 0:01:24]} 30. Rxd6 {[%clk 0:00:33]}  Rxd6 {[%clk 0:01:24]} 31. Rf7 {[%clk 0:00:33]}  Rd1+ {[%clk 0:01:23]} 32. Kh2 {[%clk 0:00:33]}  Qd6 {[%clk 0:01:23]} 33. Qxd6 {[%clk 0:00:31]}  Rxd6 {[%clk 0:01:24]} 34. Ra7 {[%clk 0:00:31]}  Rxg6 {[%clk 0:01:24]} 35. Rxa5 {[%clk 0:00:31]}  Rb6 {[%clk 0:01:23]} 36. a4 {[%clk 0:00:31]}  bxa3 {[%clk 0:01:22]} 37. bxa3 {[%clk 0:00:32]}  Rb2 {[%clk 0:01:22]} 38. Kg3 {[%clk 0:00:32]}  Nf6 {[%clk 0:01:20]} 39. Ra8+ {[%clk 0:00:32]}  Kh7 {[%clk 0:01:20]} 40. a4 {[%clk 0:00:33]}  Ne4+ {[%clk 0:01:19]} 41. Kf3 {[%clk 0:00:34]}  Nxf2 {[%clk 0:01:19]} 42. a5 {[%clk 0:00:34]}  Ra2 {[%clk 0:01:19]} 43. a6 {[%clk 0:00:35]}  Nd3 {[%clk 0:01:18]} 44. a7 {[%clk 0:00:36]}  Ne5+ {[%clk 0:01:18]} 45. Ke4 {[%clk 0:00:37]}  Nc6 {[%clk 0:01:18]} 46. Kd5 {[%clk 0:00:37]}  Nxa7 {[%clk 0:01:18]} 47. g4 {[%clk 0:00:38]}  Ra5+ {[%clk 0:01:14]} 48. Ke6 {[%clk 0:00:36]}  Kg6 {[%clk 0:01:12]} 49. h4 {[%clk 0:00:36]}  Ra4 {[%clk 0:01:13]} 50. h5+ {[%clk 0:00:31]}  Kh7 {[%clk 0:01:12]} 51. Kf5 {[%clk 0:00:30]}  Ra5+ {[%clk 0:01:11]} 52. Kf4 {[%clk 0:00:31]}  Nc6 {[%clk 0:01:11]} 53. Rc8 {[%clk 0:00:31]}  Ne7 {[%clk 0:01:09]} 54. Kg3 {[%clk 0:00:31]}  Nxc8 {[%clk 0:01:05]} 0-1


[Site "https://www.chess.com"]

[Event "Titled Tuesday Blitz March 22 Early 2022"]
[White "Hoffmann, Asa"]
[Black "Chincholimath, Halsagar"]
[WhiteFideId "2001470"]
[BlackFideId "5022487"]
[WhiteElo "2117"]
[BlackElo "1737"]
[Result "1-0"]
[Round "03"]
[TimeControl "180+1"]
[Date "2022.03.22"]
[WhiteClock "0:01:19"]
[BlackClock "0:00:40"]

1. d4 {[%clk 0:02:59]}  d5 {[%clk 0:02:59]} 2. Bg5 {[%clk 0:02:55]}  c5 {[%clk 0:02:58]} 3. dxc5 {[%clk 0:02:54]}  Qa5+ {[%clk 0:02:55]} 4. Nc3 {[%clk 0:02:53]}  Qxc5 {[%clk 0:02:55]} 5. Qxd5 {[%clk 0:02:52]}  Qxd5 {[%clk 0:02:49]} 6. Nxd5 {[%clk 0:02:51]}  Na6 {[%clk 0:02:49]} 7. e4 {[%clk 0:02:50]}  e6 {[%clk 0:02:49]} 8. Bxa6 {[%clk 0:02:45]}  exd5 {[%clk 0:02:49]} 9. Bb5+ {[%clk 0:02:44]}  Bd7 {[%clk 0:02:46]} 10. Bxd7+ {[%clk 0:02:43]}  Kxd7 {[%clk 0:02:47]} 11. exd5 {[%clk 0:02:43]}  Re8+ {[%clk 0:02:43]} 12. Kf1 {[%clk 0:02:42]}  Ne7 {[%clk 0:02:30]} 13. c4 {[%clk 0:02:35]}  Nf5 {[%clk 0:02:25]} 14. Rd1 {[%clk 0:02:30]}  Bc5 {[%clk 0:02:08]} 15. Nf3 {[%clk 0:02:28]}  h5 {[%clk 0:01:57]} 16. g3 {[%clk 0:02:27]}  f6 {[%clk 0:01:57]} 17. Bd2 {[%clk 0:02:23]}  g5 {[%clk 0:01:35]} 18. Kg2 {[%clk 0:02:15]}  h4 {[%clk 0:01:26]} 19. h3 {[%clk 0:02:11]}  hxg3 {[%clk 0:01:13]} 20. fxg3 {[%clk 0:02:10]}  Be3 {[%clk 0:01:13]} 21. Rhe1 {[%clk 0:02:06]}  Bxd2 {[%clk 0:01:10]} 22. Rxe8 {[%clk 0:01:49]}  Rxe8 {[%clk 0:01:02]} 23. Rxd2 {[%clk 0:01:49]}  Ne3+ {[%clk 0:01:03]} 24. Kf2 {[%clk 0:01:49]}  Nxc4 {[%clk 0:01:03]} 25. Rc2 {[%clk 0:01:44]}  b5 {[%clk 0:01:01]} 26. h4 {[%clk 0:01:40]}  gxh4 {[%clk 0:00:56]} 27. gxh4 {[%clk 0:01:39]}  Kd6 {[%clk 0:00:56]} 28. a4 {[%clk 0:01:35]}  a6 {[%clk 0:00:55]} 29. axb5 {[%clk 0:01:35]}  axb5 {[%clk 0:00:55]} 30. b3 {[%clk 0:01:32]}  Nb6 {[%clk 0:00:50]} 31. Rc6+ {[%clk 0:01:30]}  Kxd5 {[%clk 0:00:50]} 32. Rxb6 {[%clk 0:01:30]}  Kc5 {[%clk 0:00:49]} 33. Rxf6 {[%clk 0:01:29]}  Kb4 {[%clk 0:00:48]} 34. h5 {[%clk 0:01:26]}  Rh8 {[%clk 0:00:48]} 35. h6 {[%clk 0:01:25]}  Rh7 {[%clk 0:00:48]} 36. Nd4 {[%clk 0:01:23]}  Rh8 {[%clk 0:00:46]} 37. Ke3 {[%clk 0:01:23]}  Rd8 {[%clk 0:00:45]} 38. Rb6 {[%clk 0:01:20]}  Rd5 {[%clk 0:00:43]} 39. Rxb5+ {[%clk 0:01:19]}  Rxb5 {[%clk 0:00:40]} 40. Nxb5 {[%clk 0:01:19]} 1-0


[Site "https://www.chess.com"]

[Event "Titled Tuesday Blitz March 22 Early 2022"]
[White "Ianov, Viktor"]
[Black "Chyngyz, Sultai"]
[WhiteFideId "14102730"]
[BlackFideId "13803158"]
[WhiteElo "2161"]
[BlackElo "1365"]
[Result "1-0"]
[Round "03"]
[TimeControl "180+1"]
[Date "2022.03.22"]
[WhiteClock "0:02:41"]
[BlackClock "0:02:36"]

1. Nf3 {[%clk 0:03:00]}  Nf6 {[%clk 0:02:58]} 2. g3 {[%clk 0:03:00]}  g6 {[%clk 0:02:58]} 3. b3 {[%clk 0:03:01]}  Bg7 {[%clk 0:02:58]} 4. Bb2 {[%clk 0:03:01]}  O-O {[%clk 0:02:58]} 5. Bg2 {[%clk 0:03:01]}  d6 {[%clk 0:02:59]} 6. d4 {[%clk 0:03:01]}  Nc6 {[%clk 0:02:59]} 7. O-O {[%clk 0:03:01]}  Bf5 {[%clk 0:02:58]} 8. c4 {[%clk 0:03:01]}  Nd7 {[%clk 0:02:54]} 9. Nh4 {[%clk 0:02:58]}  e6 {[%clk 0:02:50]} 10. e4 {[%clk 0:02:55]}  g5 {[%clk 0:02:46]} 11. exf5 {[%clk 0:02:54]}  gxh4 {[%clk 0:02:47]} 12. fxe6 {[%clk 0:02:53]}  fxe6 {[%clk 0:02:47]} 13. Na3 {[%clk 0:02:51]}  Qg5 {[%clk 0:02:44]} 14. Nc2 {[%clk 0:02:47]}  e5 {[%clk 0:02:36]} 15. d5 {[%clk 0:02:44]}  Nb6 {[%clk 0:02:36]} 16. dxc6 {[%clk 0:02:41]} 1-0


[Site "https://www.chess.com"]

[Event "Titled Tuesday Blitz March 22 Early 2022"]
[White "Jary, Sergey"]
[Black "Milanovic, Marko"]
[WhiteFideId "14110350"]
[BlackFideId "980129"]
[WhiteElo "2260"]
[BlackElo "2159"]
[Result "1/2-1/2"]
[Round "03"]
[TimeControl "180+1"]
[Date "2022.03.22"]
[WhiteClock "0:00:05"]
[BlackClock "0:00:05"]

1. e4 {[%clk 0:01:32]}  e5 {[%clk 0:02:56]} 2. Nf3 {[%clk 0:01:32]}  Nc6 {[%clk 0:02:56]} 3. d4 {[%clk 0:01:32]}  exd4 {[%clk 0:02:56]} 4. Bc4 {[%clk 0:01:33]}  Nf6 {[%clk 0:02:57]} 5. O-O {[%clk 0:01:33]}  Nxe4 {[%clk 0:02:57]} 6. Re1 {[%clk 0:01:34]}  d5 {[%clk 0:02:56]} 7. Bxd5 {[%clk 0:01:33]}  Qxd5 {[%clk 0:02:56]} 8. Nc3 {[%clk 0:01:30]}  Qd7 {[%clk 0:02:55]} 9. Nxe4 {[%clk 0:01:23]}  Be7 {[%clk 0:02:55]} 10. Bg5 {[%clk 0:01:21]}  O-O {[%clk 0:02:53]} 11. Bxe7 {[%clk 0:01:21]}  Qxe7 {[%clk 0:02:54]} 12. Nxd4 {[%clk 0:01:19]}  Bd7 {[%clk 0:02:38]} 13. c3 {[%clk 0:01:12]}  Rad8 {[%clk 0:02:27]} 14. Nb5 {[%clk 0:01:01]}  a6 {[%clk 0:02:18]} 15. Na3 {[%clk 0:00:53]}  Be6 {[%clk 0:02:06]} 16. Qe2 {[%clk 0:00:50]}  Rfe8 {[%clk 0:02:04]} 17. h3 {[%clk 0:00:49]}  b5 {[%clk 0:01:59]} 18. Nc2 {[%clk 0:00:47]}  Bf5 {[%clk 0:01:23]} 19. f3 {[%clk 0:00:32]}  Qh4 {[%clk 0:01:08]} 20. Rad1 {[%clk 0:00:16]}  Rxd1 {[%clk 0:00:59]} 21. Qxd1 {[%clk 0:00:16]}  Rd8 {[%clk 0:00:44]} 22. Qe2 {[%clk 0:00:14]}  Be6 {[%clk 0:00:41]} 23. a4 {[%clk 0:00:13]}  Bc4 {[%clk 0:00:24]} 24. Qf2 {[%clk 0:00:12]}  Qxf2+ {[%clk 0:00:18]} 25. Nxf2 {[%clk 0:00:12]}  Kf8 {[%clk 0:00:17]} 26. axb5 {[%clk 0:00:11]}  axb5 {[%clk 0:00:17]} 27. Ne3 {[%clk 0:00:11]}  Rd2 {[%clk 0:00:16]} 28. Nxc4 {[%clk 0:00:09]}  bxc4 {[%clk 0:00:17]} 29. Rb1 {[%clk 0:00:08]}  Ne5 {[%clk 0:00:16]} 30. Ne4 {[%clk 0:00:07]}  Rd8 {[%clk 0:00:11]} 31. b3 {[%clk 0:00:06]}  Rb8 {[%clk 0:00:11]} 32. b4 {[%clk 0:00:06]}  Nd3 {[%clk 0:00:09]} 33. Nd2 {[%clk 0:00:04]}  c5 {[%clk 0:00:05]} 34. Nxc4 {[%clk 0:00:04]}  cxb4 {[%clk 0:00:06]} 35. cxb4 {[%clk 0:00:04]}  Rxb4 {[%clk 0:00:06]} 36. Rxb4 {[%clk 0:00:04]}  Nxb4 {[%clk 0:00:07]} 37. Ne3 {[%clk 0:00:05]}  Nc6 {[%clk 0:00:05]} 1/2-1/2


[Site "https://www.chess.com"]